[Event "*** SCC Grand Prix: Titled Tuesday Blitz"]
[Site "Chess.com"]
[Date "2020.08.25"]
[Round "1"]
[White "Izoria123"]
[Black "imrk_64"]
[Result "1-0"]
[WhiteElo "2856"]
[BlackElo "2421"]
[TimeControl "180+1"]
[EndTime "10:05:15 PDT"]
[Termination "Izoria123 won by resignation"]

1. Nf3 {[%clk 0:03:00.9]} 1... d5 {[%clk 0:02:59.1]} 2. e3 {[%clk 0:02:58.2]}
2... Nf6 {[%clk 0:02:57.4]} 3. c4 {[%clk 0:02:58.7]} 3... c6 {[%clk 0:02:56.8]}
4. Nc3 {[%clk 0:02:58.3]} 4... g6 {[%clk 0:02:56.9]} 5. d4 {[%clk 0:02:57.4]}
5... Bg7 {[%clk 0:02:57.2]} 6. cxd5 {[%clk 0:02:58]} 6... cxd5 {[%clk
0:02:57.8]} 7. Bb5+ {[%clk 0:02:58.1]} 7... Bd7 {[%clk 0:02:57.6]} 8. Qb3 {[%clk
0:02:57.9]} 8... Bxb5 {[%clk 0:02:48.1]} 9. Qxb5+ {[%clk 0:02:58.8]} 9... Qd7
{[%clk 0:02:48.1]} 10. Ne5 {[%clk 0:02:58.7]} 10... Qxb5 {[%clk 0:02:46.2]} 11.
Nxb5 {[%clk 0:02:59.6]} 11... Na6 {[%clk 0:02:46.8]} 12. Ke2 {[%clk 0:02:58.2]}
12... Nd7 {[%clk 0:02:45.7]} 13. Nd3 {[%clk 0:02:56.6]} 13... O-O-O {[%clk
0:02:23.1]} 14. Nxa7+ {[%clk 0:02:53.3]} 14... Kb8 {[%clk 0:02:23.3]} 15. Nb5
{[%clk 0:02:54.2]} 15... e5 {[%clk 0:02:23.9]} 16. Rd1 {[%clk 0:01:53.7]} 16...
exd4 {[%clk 0:02:09]} 17. exd4 {[%clk 0:01:53.2]} 17... Rhe8+ {[%clk 0:02:07.2]}
18. Kf1 {[%clk 0:01:52.9]} 18... Nb6 {[%clk 0:02:06.3]} 19. Bf4+ {[%clk
0:01:50.6]} 19... Ka8 {[%clk 0:02:05.4]} 20. Nc7+ {[%clk 0:01:49.8]} 20... Nxc7
{[%clk 0:02:02]} 21. Bxc7 {[%clk 0:01:50.7]} 21... Bxd4 {[%clk 0:02:02.6]} 22.
Bxd8 {[%clk 0:01:48.4]} 22... Rxd8 {[%clk 0:02:03.5]} 23. Rac1 {[%clk
0:01:44.5]} 23... Kb8 {[%clk 0:01:55.4]} 24. b3 {[%clk 0:01:41.5]} 24... Bg7
{[%clk 0:01:51.2]} 25. Rc2 {[%clk 0:01:39.7]} 25... d4 {[%clk 0:01:51.3]} 26.
Re1 {[%clk 0:01:30.8]} 26... Nd5 {[%clk 0:01:50.7]} 27. Rce2 {[%clk 0:01:29.2]}
27... Rd7 {[%clk 0:01:42.7]} 28. Re8+ {[%clk 0:01:28.4]} 28... Ka7 {[%clk
0:01:41.7]} 29. Rc8 {[%clk 0:01:18.5]} 29... Nb6 {[%clk 0:01:36.6]} 30. Rg8
{[%clk 0:01:15.5]} 30... f5 {[%clk 0:01:34.8]} 31. Nc5 {[%clk 0:01:05.8]} 31...
Rf7 {[%clk 0:01:32.8]} 32. Ree8 {[%clk 0:00:50.4]} 1-0

[Event "*** SCC Grand Prix: Titled Tuesday Blitz"]
[Site "Chess.com"]
[Date "2020.08.25"]
[Round "1"]
[White "chito89"]
[Black "oganromchess"]
[Result "1-0"]
[WhiteElo "2773"]
[BlackElo "2403"]
[TimeControl "180+1"]
[EndTime "10:05:20 PDT"]
[Termination "chito89 won by resignation"]

1. c4 {[%clk 0:02:59]} 1... e6 {[%clk 0:03:00.9]} 2. Nf3 {[%clk 0:02:58.3]} 2...
f5 {[%clk 0:03:00.8]} 3. g3 {[%clk 0:02:54.7]} 3... Nf6 {[%clk 0:03:00.7]} 4.
Bg2 {[%clk 0:02:55.2]} 4... Be7 {[%clk 0:03:00.8]} 5. O-O {[%clk 0:02:55.6]}
5... O-O {[%clk 0:03:01.1]} 6. d4 {[%clk 0:02:53.9]} 6... Ne4 {[%clk 0:03:00.2]}
7. d5 {[%clk 0:02:50.2]} 7... Bf6 {[%clk 0:02:57.8]} 8. Nbd2 {[%clk 0:02:38]}
8... Nxd2 {[%clk 0:02:55.1]} 9. Nxd2 {[%clk 0:02:35.3]} 9... e5 {[%clk
0:02:54.8]} 10. e4 {[%clk 0:02:29.9]} 10... f4 {[%clk 0:02:44.5]} 11. c5 {[%clk
0:02:28.3]} 11... d6 {[%clk 0:02:44]} 12. cxd6 {[%clk 0:02:27.3]} 12... cxd6
{[%clk 0:02:44.3]} 13. Nc4 {[%clk 0:02:25.1]} 13... Qc7 {[%clk 0:02:38.2]} 14.
Qb3 {[%clk 0:02:21.1]} 14... Na6 {[%clk 0:02:34.7]} 15. gxf4 {[%clk 0:02:19.6]}
15... Nc5 {[%clk 0:02:34]} 16. Qa3 {[%clk 0:02:14.6]} 16... exf4 {[%clk
0:02:16.9]} 17. Bxf4 {[%clk 0:02:11.2]} 17... Nxe4 {[%clk 0:02:03.6]} 18. Rac1
{[%clk 0:01:57]} 18... Be7 {[%clk 0:01:53.9]} 19. Qe3 {[%clk 0:01:30.9]} 19...
Nc5 {[%clk 0:01:41]} 20. b4 {[%clk 0:01:31]} 20... Na6 {[%clk 0:01:40.7]} 21.
Nxd6 {[%clk 0:01:26.4]} 21... Bxd6 {[%clk 0:01:38.2]} 22. Rxc7 {[%clk
0:01:23.4]} 22... Bxf4 {[%clk 0:01:37.7]} 23. Rxg7+ {[%clk 0:01:08.9]} 23...
Kxg7 {[%clk 0:01:32.3]} 24. Qd4+ {[%clk 0:01:09.8]} 24... Rf6 {[%clk 0:01:28.2]}
25. Re1 {[%clk 0:01:08.9]} 25... Bd6 {[%clk 0:01:23.1]} 26. Re8 {[%clk
0:01:08.1]} 26... Nc7 {[%clk 0:01:17.8]} 27. Rxc8 {[%clk 0:01:06.2]} 27... Rxc8
{[%clk 0:01:15.8]} 28. Qg4+ {[%clk 0:01:06.7]} 1-0

[Event "*** SCC Grand Prix: Titled Tuesday Blitz"]
[Site "Chess.com"]
[Date "2020.08.25"]
[Round "1"]
[White "Tooweak2slow03"]
[Black "Xeniya2005"]
[Result "1-0"]
[WhiteElo "2687"]
[BlackElo "2356"]
[TimeControl "180+1"]
[EndTime "10:05:21 PDT"]
[Termination "Tooweak2slow03 won on time"]

1. e4 {[%clk 0:02:53.5]} 1... e6 {[%clk 0:03:00.2]} 2. Nf3 {[%clk 0:02:53.6]}
2... d5 {[%clk 0:03:00.6]} 3. e5 {[%clk 0:02:52.9]} 3... c5 {[%clk 0:02:59.1]}
4. b4 {[%clk 0:02:52.7]} 4... b6 {[%clk 0:02:54]} 5. bxc5 {[%clk 0:02:51.7]}
5... bxc5 {[%clk 0:02:53.3]} 6. c3 {[%clk 0:02:28.8]} 6... Nc6 {[%clk
0:02:48.7]} 7. d4 {[%clk 0:02:28.4]} 7... cxd4 {[%clk 0:02:41.9]} 8. cxd4 {[%clk
0:02:29.3]} 8... Bd7 {[%clk 0:02:40.8]} 9. Bd3 {[%clk 0:02:29]} 9... Bb4+ {[%clk
0:02:37.2]} 10. Bd2 {[%clk 0:02:28.8]} 10... Bxd2+ {[%clk 0:02:36.3]} 11. Nbxd2
{[%clk 0:02:29.7]} 11... Nge7 {[%clk 0:02:36.2]} 12. O-O {[%clk 0:02:29.3]}
12... h6 {[%clk 0:02:30.5]} 13. Nb3 {[%clk 0:02:24.2]} 13... O-O {[%clk
0:02:25.5]} 14. Nc5 {[%clk 0:02:20.1]} 14... Rc8 {[%clk 0:02:20.9]} 15. a3
{[%clk 0:02:16.4]} 15... Nxd4 {[%clk 0:02:16.5]} 16. Nb7 {[%clk 0:01:25.9]} 1-0

[Event "*** SCC Grand Prix: Titled Tuesday Blitz"]
[Site "Chess.com"]
[Date "2020.08.25"]
[Round "1"]
[White "serhanberat_ozdemir"]
[Black "grandcoach"]
[Result "1-0"]
[WhiteElo "2495"]
[BlackElo "2108"]
[TimeControl "180+1"]
[EndTime "10:05:21 PDT"]
[Termination "serhanberat_ozdemir won on time"]

1. e4 {[%clk 0:02:59.1]} 1... c5 {[%clk 0:02:58.2]} 2. Nf3 {[%clk 0:02:59.1]}
2... Nc6 {[%clk 0:02:58.7]} 3. Bb5 {[%clk 0:02:59.4]} 3... e6 {[%clk 0:02:57]}
4. O-O {[%clk 0:02:56.2]} 4... Nge7 {[%clk 0:02:56.4]} 5. Re1 {[%clk 0:02:54.9]}
5... a6 {[%clk 0:02:55.1]} 6. Bf1 {[%clk 0:02:54.8]} 6... d5 {[%clk 0:02:51.5]}
7. exd5 {[%clk 0:02:55.7]} 7... Nxd5 {[%clk 0:02:51.4]} 8. d4 {[%clk 0:02:56.3]}
8... cxd4 {[%clk 0:02:33.1]} 9. Nxd4 {[%clk 0:02:57.2]} 9... Bc5 {[%clk
0:02:24]} 10. Nxc6 {[%clk 0:02:51.2]} 10... bxc6 {[%clk 0:02:04.6]} 11. Qf3
{[%clk 0:02:50.3]} 11... O-O {[%clk 0:02:01.6]} 12. Nd2 {[%clk 0:02:43.5]} 12...
Rb8 {[%clk 0:01:37.6]} 13. Ne4 {[%clk 0:02:41.9]} 13... Bb4 {[%clk 0:01:28.9]}
14. c3 {[%clk 0:02:41.4]} 14... Be7 {[%clk 0:01:27]} 15. b3 {[%clk 0:02:34]}
15... a5 {[%clk 0:01:16.2]} 16. c4 {[%clk 0:02:19.6]} 16... Nb4 {[%clk 0:01:14]}
17. Bb2 {[%clk 0:02:19.9]} 17... f5 {[%clk 0:01:03.4]} 18. Qg3 {[%clk
0:02:15.3]} 18... Rf7 {[%clk 0:01:00]} 19. Qxb8 {[%clk 0:02:11.6]} 19... fxe4
{[%clk 0:00:57.4]} 20. Rad1 {[%clk 0:02:11.9]} 20... Nd3 {[%clk 0:00:53.1]} 21.
Bxd3 {[%clk 0:02:08.5]} 21... exd3 {[%clk 0:00:54]} 22. Re3 {[%clk 0:01:46.6]}
22... Bc5 {[%clk 0:00:32.9]} 23. Rexd3 {[%clk 0:01:46.7]} 23... Bxf2+ {[%clk
0:00:30.8]} 24. Kh1 {[%clk 0:01:46.9]} 1-0

[Event "*** SCC Grand Prix: Titled Tuesday Blitz"]
[Site "Chess.com"]
[Date "2020.08.25"]
[Round "1"]
[White "x-6099009240"]
[Black "GMAkobianSTL"]
[Result "0-1"]
[WhiteElo "2423"]
[BlackElo "2857"]
[TimeControl "180+1"]
[EndTime "10:05:22 PDT"]
[Termination "GMAkobianSTL won by resignation"]

1. e4 {[%clk 0:03:00.9]} 1... d6 {[%clk 0:02:56.5]} 2. d4 {[%clk 0:03:00.5]}
2... Nf6 {[%clk 0:02:55]} 3. Nc3 {[%clk 0:03:00.4]} 3... c6 {[%clk 0:02:55.1]}
4. Nf3 {[%clk 0:02:58.9]} 4... Bg4 {[%clk 0:02:54.5]} 5. h3 {[%clk 0:02:57.7]}
5... Bh5 {[%clk 0:02:54.5]} 6. g4 {[%clk 0:02:55.8]} 6... Bg6 {[%clk 0:02:54.3]}
7. Qe2 {[%clk 0:02:56.5]} 7... e6 {[%clk 0:02:53.6]} 8. g5 {[%clk 0:02:47.3]}
8... Nfd7 {[%clk 0:02:51.2]} 9. h4 {[%clk 0:02:47.7]} 9... Bh5 {[%clk 0:02:51]}
10. Bg2 {[%clk 0:02:45.3]} 10... Be7 {[%clk 0:02:48.3]} 11. d5 {[%clk
0:02:35.6]} 11... O-O {[%clk 0:02:39.7]} 12. Bf4 {[%clk 0:02:29.9]} 12... cxd5
{[%clk 0:02:35.7]} 13. exd5 {[%clk 0:02:29.6]} 13... e5 {[%clk 0:02:35.9]} 14.
Be3 {[%clk 0:02:29.7]} 14... f5 {[%clk 0:02:32.8]} 15. gxf6 {[%clk 0:02:26.8]}
15... Nxf6 {[%clk 0:02:32.6]} 16. Bg5 {[%clk 0:02:03.5]} 16... Nbd7 {[%clk
0:02:30.1]} 17. O-O-O {[%clk 0:02:00.5]} 17... Rc8 {[%clk 0:02:26.8]} 18. Ne4
{[%clk 0:01:54.2]} 18... Nxe4 {[%clk 0:02:22.4]} 19. Qxe4 {[%clk 0:01:55.1]}
19... Bg6 {[%clk 0:02:22]} 20. Qe2 {[%clk 0:01:42.6]} 20... Rxc2+ {[%clk
0:02:20.4]} 21. Qxc2 {[%clk 0:01:43.5]} 21... Bxc2 {[%clk 0:02:19.5]} 22. Kxc2
{[%clk 0:01:44.4]} 22... e4 {[%clk 0:02:11.5]} 23. Nd2 {[%clk 0:01:44.4]} 23...
Rxf2 {[%clk 0:02:06.2]} 24. Bxe4 {[%clk 0:01:44.2]} 24... Nc5 {[%clk 0:02:03.3]}
25. Rde1 {[%clk 0:00:40.9]} 25... Nxe4 {[%clk 0:01:57]} 26. Rxe4 {[%clk
0:00:41.8]} 26... Bxg5 {[%clk 0:01:55.7]} 27. hxg5 {[%clk 0:00:42.7]} 27... Qxg5
{[%clk 0:01:54.4]} 28. Rd4 {[%clk 0:00:41.6]} 28... h5 {[%clk 0:01:42.8]} 29. a4
{[%clk 0:00:36.8]} 29... a5 {[%clk 0:01:41.7]} 30. b3 {[%clk 0:00:31.9]} 30...
h4 {[%clk 0:01:39.9]} 31. Kd3 {[%clk 0:00:24.6]} 31... Qxd2+ {[%clk 0:01:33.6]}
0-1

[Event "*** SCC Grand Prix: Titled Tuesday Blitz"]
[Site "Chess.com"]
[Date "2020.08.25"]
[Round "1"]
[White "ftorodent"]
[Black "ClydeHillKid"]
[Result "1-0"]
[WhiteElo "2695"]
[BlackElo "2361"]
[TimeControl "180+1"]
[EndTime "10:05:30 PDT"]
[Termination "ftorodent won by checkmate"]

1. d4 {[%clk 0:03:00.9]} 1... d5 {[%clk 0:02:59.2]} 2. c4 {[%clk 0:03:01]} 2...
e6 {[%clk 0:02:57]} 3. Nf3 {[%clk 0:03:00.8]} 3... Nf6 {[%clk 0:02:52.5]} 4. Nc3
{[%clk 0:02:59.9]} 4... c6 {[%clk 0:02:50.2]} 5. e3 {[%clk 0:02:59.1]} 5... Nbd7
{[%clk 0:02:48.1]} 6. Qc2 {[%clk 0:02:59.2]} 6... Bd6 {[%clk 0:02:47.8]} 7. b3
{[%clk 0:02:58.7]} 7... O-O {[%clk 0:02:46.2]} 8. Be2 {[%clk 0:02:58.7]} 8... e5
{[%clk 0:02:45]} 9. cxd5 {[%clk 0:02:58.3]} 9... Nxd5 {[%clk 0:02:41.6]} 10.
Nxd5 {[%clk 0:02:06.5]} 10... cxd5 {[%clk 0:02:42.5]} 11. dxe5 {[%clk
0:02:04.2]} 11... Nxe5 {[%clk 0:02:41.5]} 12. Nd4 {[%clk 0:02:01.2]} 12... Bg4
{[%clk 0:02:30]} 13. O-O {[%clk 0:01:55]} 13... Rc8 {[%clk 0:02:27]} 14. Qd1
{[%clk 0:01:55]} 14... Bxe2 {[%clk 0:02:25.1]} 15. Qxe2 {[%clk 0:01:55.2]} 15...
Re8 {[%clk 0:02:18.1]} 16. Bb2 {[%clk 0:01:53.3]} 16... Qg5 {[%clk 0:02:11.9]}
17. f4 {[%clk 0:01:44.8]} 17... Qh6 {[%clk 0:01:58.4]} 18. Nf5 {[%clk
0:01:26.2]} 18... Qg6 {[%clk 0:01:50.9]} 19. Nxd6 {[%clk 0:01:24.8]} 19... Rc2
{[%clk 0:01:49.6]} 20. f5 {[%clk 0:01:13.6]} 20... Qh6 {[%clk 0:01:21]} 21. Qxc2
{[%clk 0:01:05.4]} 21... Ng4 {[%clk 0:01:20]} 22. h3 {[%clk 0:00:50]} 22... Nxe3
{[%clk 0:01:12.1]} 23. Qd2 {[%clk 0:00:38.2]} 23... Rd8 {[%clk 0:01:07.7]} 24.
Rae1 {[%clk 0:00:32.8]} 24... Nxf1 {[%clk 0:01:06.5]} 25. Qxh6 {[%clk
0:00:32.6]} 25... gxh6 {[%clk 0:01:06.5]} 26. Kxf1 {[%clk 0:00:32.4]} 26... Rxd6
{[%clk 0:01:06.2]} 27. Re8# {[%clk 0:00:32.3]} 1-0

[Event "*** SCC Grand Prix: Titled Tuesday Blitz"]
[Site "Chess.com"]
[Date "2020.08.25"]
[Round "1"]
[White "GameOverBro"]
[Black "tigra"]
[Result "0-1"]
[WhiteElo "2435"]
[BlackElo "2901"]
[TimeControl "180+1"]
[EndTime "10:05:31 PDT"]
[Termination "tigra won by resignation"]

1. e4 {[%clk 0:03:00.9]} 1... c5 {[%clk 0:02:58.9]} 2. Ne2 {[%clk 0:02:59.7]}
2... Nf6 {[%clk 0:02:51.7]} 3. Nbc3 {[%clk 0:02:59.1]} 3... e5 {[%clk
0:02:49.5]} 4. Ng3 {[%clk 0:02:58.5]} 4... Nc6 {[%clk 0:02:47.2]} 5. Bc4 {[%clk
0:02:58.7]} 5... g6 {[%clk 0:02:43.7]} 6. d3 {[%clk 0:02:58.8]} 6... Bg7 {[%clk
0:02:44.3]} 7. O-O {[%clk 0:02:58.3]} 7... O-O {[%clk 0:02:44.9]} 8. f4 {[%clk
0:02:58.6]} 8... exf4 {[%clk 0:02:43.3]} 9. Bxf4 {[%clk 0:02:59.5]} 9... d6
{[%clk 0:02:43.6]} 10. Qd2 {[%clk 0:02:58.7]} 10... Ng4 {[%clk 0:02:34.8]} 11.
Nd5 {[%clk 0:02:50.5]} 11... Qh4 {[%clk 0:02:28]} 12. h3 {[%clk 0:02:41.4]}
12... Bd4+ {[%clk 0:02:16.8]} 13. Kh1 {[%clk 0:02:39.3]} 13... g5 {[%clk
0:02:07.6]} 14. c3 {[%clk 0:02:31.7]} 14... gxf4 {[%clk 0:02:05.5]} 15. cxd4
{[%clk 0:02:29.8]} 15... fxg3 {[%clk 0:02:02.5]} 16. Rf4 {[%clk 0:02:10.6]}
16... Kh8 {[%clk 0:01:20.7]} 17. Kg1 {[%clk 0:02:05.3]} 17... Qh6 {[%clk
0:01:18.4]} 18. Re1 {[%clk 0:01:01.6]} 18... cxd4 {[%clk 0:01:14]} 19. hxg4
{[%clk 0:00:57]} 19... Bxg4 {[%clk 0:01:08.8]} 0-1

[Event "*** SCC Grand Prix: Titled Tuesday Blitz"]
[Site "Chess.com"]
[Date "2020.08.25"]
[Round "1"]
[White "Arjun2002"]
[Black "Schachmalanders"]
[Result "1-0"]
[WhiteElo "2684"]
[BlackElo "2353"]
[TimeControl "180+1"]
[EndTime "10:05:31 PDT"]
[Termination "Arjun2002 won by checkmate"]

1. d4 {[%clk 0:03:00.9]} 1... d5 {[%clk 0:02:58.4]} 2. c4 {[%clk 0:02:59.5]}
2... e6 {[%clk 0:02:58.6]} 3. Nc3 {[%clk 0:02:59.4]} 3... c6 {[%clk 0:02:59]} 4.
e3 {[%clk 0:02:58.7]} 4... f5 {[%clk 0:02:58.5]} 5. Bd3 {[%clk 0:02:57.3]} 5...
Nf6 {[%clk 0:02:58.8]} 6. Nge2 {[%clk 0:02:57.3]} 6... Bd6 {[%clk 0:02:58.3]} 7.
f3 {[%clk 0:02:57.7]} 7... O-O {[%clk 0:02:58]} 8. Qc2 {[%clk 0:02:56.9]} 8...
Qe8 {[%clk 0:02:54.2]} 9. Bd2 {[%clk 0:02:55.7]} 9... b6 {[%clk 0:02:54.3]} 10.
O-O-O {[%clk 0:02:53.7]} 10... Bb7 {[%clk 0:02:54.3]} 11. e4 {[%clk 0:02:50.2]}
11... fxe4 {[%clk 0:02:45.7]} 12. fxe4 {[%clk 0:02:50.3]} 12... e5 {[%clk
0:02:41.9]} 13. Rhe1 {[%clk 0:02:39.3]} 13... Nbd7 {[%clk 0:02:39.3]} 14. Ng3
{[%clk 0:02:34.6]} 14... Rc8 {[%clk 0:02:31.5]} 15. Kb1 {[%clk 0:02:19]} 15...
exd4 {[%clk 0:02:25.7]} 16. exd5 {[%clk 0:02:18.9]} 16... Qf7 {[%clk 0:02:15.6]}
17. Nce4 {[%clk 0:02:04.7]} 17... Bxg3 {[%clk 0:02:09.9]} 18. hxg3 {[%clk
0:02:01.3]} 18... Nxe4 {[%clk 0:02:09.2]} 19. Bxe4 {[%clk 0:02:01.3]} 19... Nf6
{[%clk 0:02:06.3]} 20. Bf5 {[%clk 0:01:53.2]} 20... Rce8 {[%clk 0:01:57.4]} 21.
Be6 {[%clk 0:01:52]} 21... Rxe6 {[%clk 0:01:56.4]} 22. dxe6 {[%clk 0:01:52.9]}
22... Qc7 {[%clk 0:01:55.4]} 23. Bg5 {[%clk 0:01:48.3]} 23... c5 {[%clk
0:01:49.6]} 24. e7 {[%clk 0:01:44.2]} 24... Re8 {[%clk 0:01:48.6]} 25. Bxf6
{[%clk 0:01:44.2]} 25... gxf6 {[%clk 0:01:49.5]} 26. Qf5 {[%clk 0:01:44.3]}
26... Rxe7 {[%clk 0:01:47.1]} 27. Qxf6 {[%clk 0:01:44]} 27... Be4+ {[%clk
0:01:40.5]} 28. Ka1 {[%clk 0:01:42.4]} 28... Rf7 {[%clk 0:01:35.8]} 29. Qg5+
{[%clk 0:01:35.2]} 29... Bg6 {[%clk 0:01:35.8]} 30. Re8+ {[%clk 0:01:22.6]}
30... Kg7 {[%clk 0:01:35.7]} 31. Rh1 {[%clk 0:01:13.1]} 31... h5 {[%clk
0:01:26.6]} 32. g4 {[%clk 0:01:06.2]} 32... Qd7 {[%clk 0:01:24.5]} 33. Qe5+
{[%clk 0:01:00.1]} 33... Rf6 {[%clk 0:01:21.5]} 34. g5 {[%clk 0:01:00.1]} 34...
Qxe8 {[%clk 0:01:19.3]} 35. gxf6+ {[%clk 0:00:55.6]} 35... Kf7 {[%clk
0:01:17.8]} 36. Qc7+ {[%clk 0:00:53.4]} 36... Kxf6 {[%clk 0:01:17.6]} 37. Rf1+
{[%clk 0:00:53.5]} 37... Kg5 {[%clk 0:01:16.4]} 38. Qf4# {[%clk 0:00:53]} 1-0

[Event "*** SCC Grand Prix: Titled Tuesday Blitz"]
[Site "Chess.com"]
[Date "2020.08.25"]
[Round "1"]
[White "Skatchkov_V"]
[Black "kasparicy"]
[Result "1-0"]
[WhiteElo "2672"]
[BlackElo "2340"]
[TimeControl "180+1"]
[EndTime "10:05:31 PDT"]
[Termination "Skatchkov_V won by resignation"]

1. d4 {[%clk 0:03:00.8]} 1... Nf6 {[%clk 0:02:59.5]} 2. c4 {[%clk 0:03:00.9]}
2... g6 {[%clk 0:02:57.8]} 3. Nf3 {[%clk 0:03:00.6]} 3... Bg7 {[%clk 0:02:55.3]}
4. g3 {[%clk 0:03:01]} 4... O-O {[%clk 0:02:54.7]} 5. Bg2 {[%clk 0:03:01.4]}
5... d5 {[%clk 0:02:51.6]} 6. cxd5 {[%clk 0:03:01.4]} 6... Nxd5 {[%clk 0:02:51]}
7. O-O {[%clk 0:03:01.8]} 7... a5 {[%clk 0:02:49.9]} 8. Nc3 {[%clk 0:02:57.1]}
8... Nb6 {[%clk 0:02:43]} 9. e3 {[%clk 0:02:52.8]} 9... Nc6 {[%clk 0:02:42.4]}
10. Re1 {[%clk 0:02:49.3]} 10... Bg4 {[%clk 0:02:42.6]} 11. h3 {[%clk
0:02:45.7]} 11... Bd7 {[%clk 0:02:37.5]} 12. e4 {[%clk 0:02:34.4]} 12... Qc8
{[%clk 0:02:35.8]} 13. Kh2 {[%clk 0:02:33.1]} 13... a4 {[%clk 0:02:34.9]} 14.
Bf4 {[%clk 0:02:30.1]} 14... Ra5 {[%clk 0:02:34.3]} 15. d5 {[%clk 0:02:25.9]}
15... Rd8 {[%clk 0:02:18.4]} 16. dxc6 {[%clk 0:02:23.6]} 16... Bxh3 {[%clk
0:02:17.7]} 17. Bxh3 {[%clk 0:02:19.5]} 17... Rh5 {[%clk 0:02:12.7]} 18. Nh4
{[%clk 0:02:15.6]} 18... Qb8 {[%clk 0:01:06.8]} 19. Qe2 {[%clk 0:02:11.7]} 19...
bxc6 {[%clk 0:01:05.7]} 20. Rad1 {[%clk 0:02:08.3]} 20... a3 {[%clk 0:00:50.4]}
21. Rxd8+ {[%clk 0:02:04.6]} 21... Qxd8 {[%clk 0:00:51.3]} 22. Rd1 {[%clk
0:02:03.3]} 22... Qa8 {[%clk 0:00:49.1]} 23. Bxc7 {[%clk 0:02:00.2]} 23... axb2
{[%clk 0:00:41.4]} 24. Qxb2 {[%clk 0:01:43.7]} 24... Nc4 {[%clk 0:00:32.5]} 25.
Qb3 {[%clk 0:01:40.9]} 25... Nd6 {[%clk 0:00:31.9]} 26. Bxd6 {[%clk 0:01:34.1]}
26... exd6 {[%clk 0:00:32.8]} 27. Rxd6 {[%clk 0:01:32.2]} 27... g5 {[%clk
0:00:32.3]} 28. Qd1 {[%clk 0:01:30.1]} 28... Qa3 {[%clk 0:00:27.2]} 29. Rd8+
{[%clk 0:01:28.2]} 1-0

[Event "*** SCC Grand Prix: Titled Tuesday Blitz"]
[Site "Chess.com"]
[Date "2020.08.25"]
[Round "1"]
[White "tsvet2005"]
[Black "HanSchut"]
[Result "1-0"]
[WhiteElo "2576"]
[BlackElo "2252"]
[TimeControl "180+1"]
[EndTime "10:05:31 PDT"]
[Termination "tsvet2005 won by resignation"]

1. d4 {[%clk 0:03:00.9]} 1... Nf6 {[%clk 0:02:58.5]} 2. c4 {[%clk 0:03:01.2]}
2... g6 {[%clk 0:02:58.8]} 3. Nc3 {[%clk 0:03:01.7]} 3... d5 {[%clk 0:02:59.3]}
4. Nf3 {[%clk 0:03:01.6]} 4... Bg7 {[%clk 0:02:59.5]} 5. h4 {[%clk 0:03:02.1]}
5... c6 {[%clk 0:02:58.8]} 6. cxd5 {[%clk 0:03:02.1]} 6... cxd5 {[%clk
0:02:58.9]} 7. Bf4 {[%clk 0:03:02.6]} 7... Nc6 {[%clk 0:02:59]} 8. e3 {[%clk
0:03:02.8]} 8... h6 {[%clk 0:02:54.1]} 9. Qb3 {[%clk 0:03:02.2]} 9... Na5 {[%clk
0:02:53]} 10. Qa3 {[%clk 0:03:02.1]} 10... Nc6 {[%clk 0:02:53.4]} 11. Bd3 {[%clk
0:02:59.8]} 11... O-O {[%clk 0:02:40.3]} 12. O-O {[%clk 0:02:59.2]} 12... Bg4
{[%clk 0:02:26.5]} 13. Ne5 {[%clk 0:02:58.4]} 13... Nxe5 {[%clk 0:02:23.4]} 14.
dxe5 {[%clk 0:02:59.3]} 14... Ne8 {[%clk 0:01:44.4]} 15. Rac1 {[%clk 0:02:45.7]}
15... e6 {[%clk 0:01:34]} 16. Bg3 {[%clk 0:02:40.1]} 16... a6 {[%clk 0:01:31.4]}
17. e4 {[%clk 0:02:28.4]} 17... Nc7 {[%clk 0:01:21.4]} 18. f3 {[%clk 0:02:17]}
18... Bh5 {[%clk 0:01:21.6]} 19. exd5 {[%clk 0:02:17.3]} 19... Nxd5 {[%clk
0:01:21.9]} 20. Nxd5 {[%clk 0:02:17.9]} 20... Qxd5 {[%clk 0:01:21.2]} 21. Be4
{[%clk 0:02:18.2]} 21... Qd4+ {[%clk 0:01:19.5]} 22. Kh1 {[%clk 0:02:18.5]}
22... Bxe5 {[%clk 0:01:13.4]} 23. Rfd1 {[%clk 0:02:12.5]} 23... Qxb2 {[%clk
0:01:14.1]} 24. Qxb2 {[%clk 0:02:03.1]} 24... Bxb2 {[%clk 0:01:15]} 25. Rb1
{[%clk 0:02:04]} 25... Bf6 {[%clk 0:01:13.4]} 26. Bd6 {[%clk 0:02:04]} 26...
Rfd8 {[%clk 0:01:12.4]} 27. g4 {[%clk 0:02:03.9]} 27... Bxg4 {[%clk 0:01:07.3]}
28. fxg4 {[%clk 0:02:04.8]} 28... Bxh4 {[%clk 0:01:08]} 29. Bxb7 {[%clk
0:01:57.2]} 29... Ra7 {[%clk 0:01:08.6]} 30. Bc6 {[%clk 0:01:52.7]} 30... Bf6
{[%clk 0:01:07.3]} 31. Bb8 {[%clk 0:01:43.5]} 31... Rxd1+ {[%clk 0:01:02.6]} 32.
Rxd1 {[%clk 0:01:44.4]} 32... Re7 {[%clk 0:01:02.2]} 33. Rd8+ {[%clk 0:01:33.7]}
33... Kg7 {[%clk 0:01:00.8]} 34. Bd6 {[%clk 0:01:34.2]} 34... Ra7 {[%clk
0:01:01]} 35. Rc8 {[%clk 0:01:34.6]} 35... Be7 {[%clk 0:00:50]} 36. Bb8 {[%clk
0:01:32.6]} 36... Bc5 {[%clk 0:00:45.8]} 37. Bxa7 {[%clk 0:01:32.8]} 37... Bxa7
{[%clk 0:00:46.7]} 38. Ra8 {[%clk 0:01:33.6]} 38... Bd4 {[%clk 0:00:45.3]} 39.
Rxa6 {[%clk 0:01:33.8]} 39... f5 {[%clk 0:00:46.2]} 40. gxf5 {[%clk 0:01:32.8]}
40... gxf5 {[%clk 0:00:47.1]} 41. Bd7 {[%clk 0:01:32.6]} 1-0